fUST/lending_fUST_20250704
["ID","MTS","AMOUNT","RATE_DAILY","PERIOD"]
[369599748,1751638239976,-460.0,0.00016438,2]
[369599750,1751638239985,-460.0,0.00016438,2]
[369599752,1751638239995,-460.0,0.00016438,2]
[369599754,1751638240007,-460.0,0.00016438,2]
[369599756,1751638240016,-790.05,0.00016438,2]
[369599758,1751638240026,-460.0,0.00016438,2]
[369599760,1751638240035,-460.0,0.00016438,2]
[369599762,1751638240046,-460.0,0.00016438,2]
[369599764,1751638240056,-460.0,0.00016438,2]
[369599766,1751638240066,-460.0,0.00016438,2]
[369599768,1751638240076,-588.91341824,0.00016438,2]
[369599770,1751638240093,-460.0,0.00016438,2]
[369599772,1751638240103,-460.0,0.00016438,2]
[369599774,1751638240113,-796.63,0.00016438,2]
[369599776,1751638240123,-460.0,0.00016438,2]
[369599778,1751638240133,-460.0,0.00016438,2]
[369599780,1751638240143,-1355.52,0.00016438,2]
[369599782,1751638240153,-460.0,0.00016438,2]
[369599784,1751638240163,-460.0,0.00016438,2]
[369599786,1751638240173,-460.0,0.00016438,2]
[369599788,1751638240183,-1417.26,0.00016438,2]
[369599790,1751638240193,-649.36,0.00016438,2]
[369599792,1751638240202,-460.0,0.00016438,2]
[369599794,1751638240213,-2175.94,0.00016438,2]
[369599796,1751638240222,-460.0,0.00016438,2]
[369599798,1751638240232,-460.0,0.00016438,2]
[369599800,1751638240242,-460.0,0.00016438,2]
[369599802,1751638240251,-667.2,0.00016438,2]
[369599804,1751638240261,-460.0,0.00016438,2]
[369599806,1751638240271,-460.0,0.00016438,2]
[369599808,1751638240280,-460.0,0.00016438,2]
[369599810,1751638240290,-460.0,0.00016438,2]
[369599812,1751638240299,-460.0,0.00016438,2]
[369599814,1751638240309,-455.11713614,0.00016438,2]
[369599879,1751638240908,-451.03286386,0.00016438,2]
[369599881,1751638240918,-630.83,0.00016438,2]
[369599883,1751638240929,-460.0,0.00016438,2]
[369599885,1751638240939,-531.2991464,0.00016438,2]
[369599889,1751638240952,-813.2308536,0.00016438,2]
[369599891,1751638240961,-196.55083398,0.00016438,2]
[369599894,1751638240971,-460.0,0.00016438,2]
[369599897,1751638240981,-460.0,0.00016438,2]
[369599899,1751638240991,-460.0,0.00016438,2]
[369599902,1751638241001,-460.0,0.00016438,2]
[369599903,1751638241010,-460.0,0.00016438,2]
[369599905,1751638241020,-2094.92,0.00016438,2]
[369599907,1751638241030,-1445.65,0.00016438,2]
[369599909,1751638241040,-530.41,0.00016438,2]
[369599911,1751638241051,-460.0,0.00016438,2]
[369599914,1751638241061,-773.31,0.00016438,2]
[369599915,1751638241072,-460.0,0.00016438,2]
[369599917,1751638241084,-460.0,0.00016438,2]
[369599919,1751638241095,-460.0,0.00016438,2]
[369599921,1751638241105,-433.2265243,0.00016438,2]
[369599922,1751638241117,-1405.0834757,0.00016438,2]
[369599923,1751638241127,-460.0,0.00016438,2]
[369599924,1751638241137,-460.0,0.00016438,2]
[369599925,1751638241147,-460.0,0.00016438,2]
[369599926,1751638241158,-460.0,0.00016438,2]
[369599927,1751638241167,-1226.09,0.00016438,2]
[369599928,1751638241176,-460.0,0.00016438,2]
[369599929,1751638241186,-644.04,0.00016438,2]
[369599930,1751638241195,-460.0,0.00016438,2]
[369599931,1751638241205,-823.2,0.00016438,2]
[369599932,1751638241215,-940.98,0.00016438,2]
[369599933,1751638241224,-460.0,0.00016438,2]
[369599934,1751638241234,-460.0,0.00016438,2]
[369599935,1751638241244,-460.0,0.00016438,2]
[369599936,1751638241254,-325.54818492,0.00016438,2]
[369599937,1751638241264,-460.0,0.00016438,2]
[369599938,1751638241274,-460.0,0.00016438,2]
[369599939,1751638241283,-460.0,0.00016438,2]
[369599940,1751638241293,-166.0,0.00016438,2]
[369599941,1751638241303,-500.0,0.00016493,2]
[369599942,1751638241312,-500.0,0.0001652,2]
[369599943,1751638241323,-690.642,0.00016526,2]
[369599944,1751638241332,-207.4,0.00016526,2]
[369599945,1751638241342,-151.0,0.00016526,2]
[369599946,1751638241352,-151.0,0.00016526,2]
[369599947,1751638241361,-151.0,0.00016526,2]
[369599948,1751638241371,-151.0,0.00016526,2]
[369599949,1751638241381,-151.0,0.00016526,2]
[369599950,1751638241392,-151.0,0.00016526,2]
[369599951,1751638241402,-151.0,0.00016526,2]
[369599952,1751638241412,-151.0,0.00016526,2]
[369599953,1751638241422,-151.0,0.00016526,2]
[369599954,1751638241431,-151.0,0.00016526,2]
[369599955,1751638241441,-214.38131551,0.00016526,2]
[369599956,1751638241451,-500.0,0.00016548,2]
[369599957,1751638241460,-500.0,0.00016575,2]
[369599958,1751638241470,-420.0,0.00016596,2]
[369599960,1751638241480,-500.0,0.00016603,2]
[369599962,1751638241489,-160.0,0.00016607,2]
[369599964,1751638241499,-230.40116161,0.00016607,2]
[369599966,1751638241509,-213.97741257,0.00016607,2]
[369599968,1751638241519,-12578.03337979,0.00016607,2]
[369599970,1751638241529,-837.48520791,0.00016607,2]
[369599972,1751638241538,-847.91215827,0.00016607,2]
[369599974,1751638241548,-215.11129906,0.00016607,2]
[369599976,1751638241558,-160.0,0.00016607,2]
[369599978,1751638241567,-160.0,0.00016607,2]
[369599980,1751638241577,-500.0,0.0001663,2]
[369599982,1751638241586,-500.0,0.00016657,2]
[369599984,1751638241597,-500.0,0.00016685,2]
[369599986,1751638241607,-460.0,0.00016712,2]
[369599988,1751638241617,-460.0,0.00016712,2]
[369599990,1751638241628,-460.0,0.00016712,2]
[369599992,1751638241641,-460.0,0.00016712,2]
[369599994,1751638241651,-460.0,0.00016712,2]
[369599996,1751638241661,-460.0,0.00016712,2]
[369599998,1751638241670,-460.0,0.00016712,2]
[369600000,1751638241681,-460.0,0.00016712,2]
[369600002,1751638241690,-460.0,0.00016712,2]
[369600004,1751638241701,-479.79,0.00016712,2]
[369600006,1751638241712,-460.0,0.00016712,2]
[369600008,1751638241723,-460.0,0.00016712,2]
[369600010,1751638241733,-556.06555737,0.00016712,2]
[369600012,1751638241744,-500.0,0.00016712,2]
[369600015,1751638241756,-460.0,0.00016712,2]
[369600016,1751638241766,-460.0,0.00016712,2]
[369600019,1751638241776,-460.0,0.00016712,2]
[369600021,1751638241786,-460.0,0.00016712,2]
[369600023,1751638241796,-460.0,0.00016712,2]
[369600024,1751638241806,-460.0,0.00016712,2]
[369600025,1751638241815,-845.59,0.00016712,2]
[369600026,1751638241825,-460.0,0.00016712,2]
[369600027,1751638241834,-560.95,0.00016712,2]
[369600029,1751638241845,-460.0,0.00016712,2]
[369600031,1751638241854,-460.0,0.00016712,2]
[369600033,1751638241865,-460.0,0.00016712,2]
[369600036,1751638241875,-790.05,0.00016712,2]
[369600037,1751638241885,-460.0,0.00016712,2]
[369600039,1751638241895,-460.0,0.00016712,2]
[369600041,1751638241905,-796.63,0.00016712,2]
[369600043,1751638241915,-460.0,0.00016712,2]
[369600045,1751638241925,-1355.52,0.00016712,2]
[369600047,1751638241936,-460.0,0.00016712,2]
[369600049,1751638241947,-460.0,0.00016712,2]
[369600051,1751638241957,-1417.26,0.00016712,2]
[369600053,1751638241966,-649.36,0.00016712,2]
[369600055,1751638241976,-460.0,0.00016712,2]
[369600057,1751638241986,-2175.94,0.00016712,2]
[369600059,1751638241996,-460.0,0.00016712,2]
[369600061,1751638242005,-460.0,0.00016712,2]
[369600063,1751638242015,-667.2,0.00016712,2]
[369600065,1751638242025,-460.0,0.00016712,2]
[369600067,1751638242035,-460.0,0.00016712,2]
[369600068,1751638242044,-460.0,0.00016712,2]
[369600070,1751638242054,-906.15,0.00016712,2]
[369600072,1751638242063,-630.83,0.00016712,2]
[369600074,1751638242073,-460.0,0.00016712,2]
[369600076,1751638242085,-1344.53,0.00016712,2]
[369600078,1751638242095,-460.0,0.00016712,2]
[369600080,1751638242104,-460.0,0.00016712,2]
[369600082,1751638242114,-460.0,0.00016712,2]
[369600084,1751638242123,-2094.92,0.00016712,2]
[369600086,1751638242134,-1445.65,0.00016712,2]
[369600088,1751638242146,-428.91376492,0.00016712,2]
[369600089,1751638242157,-773.31,0.00016712,2]
[369600092,1751638242172,-460.0,0.00016712,2]
[369600094,1751638242181,-460.0,0.00016712,2]
[369600096,1751638242190,-1838.31,0.00016712,2]
[369600098,1751638242199,-460.0,0.00016712,2]
[369600099,1751638242209,-1226.09,0.00016712,2]
[369600102,1751638242219,-460.0,0.00016712,2]
[369600104,1751638242232,-460.0,0.00016712,2]
[369600106,1751638242241,-644.04,0.00016712,2]
[369600108,1751638242250,-460.0,0.00016712,2]
[369600110,1751638242260,-823.2,0.00016712,2]
[369600112,1751638242270,-940.98,0.00016712,2]
[369600114,1751638242279,-460.0,0.00016712,2]
[369600116,1751638242289,-460.0,0.00016712,2]
[369600132,1751638242426,-460.0,0.00016712,2]
[369600134,1751638242440,-460.0,0.00016712,2]
[369600136,1751638242450,-460.0,0.00016712,2]
[369600138,1751638242460,-500.0,0.00016712,2]
[369600140,1751638242470,-500.0,0.0001674,2]
[369600142,1751638242479,-540.25372814,0.00016767,2]
[369600144,1751638242489,-221.96,0.00016794,2]
[369600145,1751638242498,-426.698,0.00016794,2]
[369600146,1751638242508,-321.9638495,0.00016795,2]
[369600148,1751638242518,-366.5311405,0.00016849,2]
[369600151,1751638242528,-366.5311405,0.00016877,2]
[369600153,1751638242537,-7079.27896796,0.000169,2]
[369600155,1751638242547,-366.5311405,0.00016941,2]
[369600157,1751638242557,-460.0,0.00016986,2]
[369600159,1751638242567,-460.0,0.00016986,2]
[369600160,1751638242576,-460.0,0.00016986,2]
[369600163,1751638242586,-460.0,0.00016986,2]
[369600165,1751638242596,-460.0,0.00016986,2]
[369600167,1751638242606,-460.0,0.00016986,2]
[369600168,1751638242616,-172.91,0.00016986,2]
[369600169,1751638242626,-460.0,0.00016986,2]
[369600170,1751638242636,-460.0,0.00016986,2]
[369600171,1751638242646,-479.79,0.00016986,2]
[369600172,1751638242655,-460.0,0.00016986,2]
[369600173,1751638242665,-460.0,0.00016986,2]
[369600174,1751638242675,-398.43302387,0.00016986,2]
[369600175,1751638242801,-61.56697613,0.00016986,2]
[369600176,1751638242811,-460.0,0.00016986,2]
[369600177,1751638242821,-460.0,0.00016986,2]
[369600178,1751638242830,-460.0,0.00016986,2]
[369600179,1751638242840,-460.0,0.00016986,2]
[369600180,1751638242850,-460.0,0.00016986,2]
[369600181,1751638242859,-845.59,0.00016986,2]
[369600182,1751638242869,-460.0,0.00016986,2]
[369600183,1751638242879,-560.95,0.00016986,2]
[369600184,1751638242890,-460.0,0.00016986,2]
[369600185,1751638242899,-460.0,0.00016986,2]
[369600186,1751638242910,-790.05,0.00016986,2]
[369600187,1751638242920,-460.0,0.00016986,2]
[369600188,1751638242930,-460.0,0.00016986,2]
[369600189,1751638242942,-796.63,0.00016986,2]
[369600190,1751638242951,-460.0,0.00016986,2]
[369600191,1751638242961,-1355.52,0.00016986,2]
[369600192,1751638242970,-460.0,0.00016986,2]
[369600193,1751638242980,-460.0,0.00016986,2]
[369600194,1751638242990,-1417.26,0.00016986,2]
[369600195,1751638242999,-649.36,0.00016986,2]
[369600196,1751638243009,-460.0,0.00016986,2]
[369600197,1751638243019,-2175.94,0.00016986,2]
[369600198,1751638243028,-460.0,0.00016986,2]
[369600199,1751638243038,-460.0,0.00016986,2]
[369600200,1751638243048,-667.2,0.00016986,2]
[369600201,1751638243057,-460.0,0.00016986,2]
[369600202,1751638243068,-460.0,0.00016986,2]
[369600203,1751638243080,-460.0,0.00016986,2]
[369600204,1751638243089,-906.15,0.00016986,2]
[369600205,1751638243098,-630.83,0.00016986,2]
[369600206,1751638243108,-460.0,0.00016986,2]
[369600207,1751638243117,-1344.53,0.00016986,2]
[369600208,1751638243128,-460.0,0.00016986,2]
[369600210,1751638243138,-460.0,0.00016986,2]
[369600212,1751638243148,-460.0,0.00016986,2]
[369600213,1751638243158,-2094.92,0.00016986,2]
[369600214,1751638243167,-1445.65,0.00016986,2]
[369600215,1751638243177,-773.31,0.00016986,2]
[369600216,1751638243187,-460.0,0.00016986,2]
[369600217,1751638243196,-460.0,0.00016986,2]
[369600218,1751638243206,-1838.31,0.00016986,2]
[369600219,1751638243216,-460.0,0.00016986,2]
[369600220,1751638243226,-1226.09,0.00016986,2]
[369600221,1751638243238,-460.0,0.00016986,2]
[369600222,1751638243248,-460.0,0.00016986,2]
[369600223,1751638243257,-644.04,0.00016986,2]
[369600224,1751638243266,-460.0,0.00016986,2]
[369600225,1751638243275,-823.2,0.00016986,2]
[369600226,1751638243293,-374.91925992,0.00016986,2]
[369600227,1751638243310,-566.06074008,0.00016986,2]
[369600228,1751638243320,-460.0,0.00016986,2]
[369600230,1751638243330,-460.0,0.00016986,2]
[369600232,1751638243341,-460.0,0.00016986,2]
[369600234,1751638243352,-460.0,0.00016986,2]
[369600236,1751638243364,-460.0,0.00016986,2]
[369600238,1751638243375,-977.49886083,0.00017,2]
[369600241,1751638243390,-113.35113917,0.00017,2]
[369600242,1751638243399,-427.0980849,0.00017068,2]
[369600257,1751638243827,-460.0,0.00016438,2]
[369600258,1751638243837,-460.0,0.00016712,2]
[369600259,1751638243847,-460.0,0.00016986,2]
[369600260,1751638243857,-539.9019151,0.00017068,2]
[369600261,1751638243866,-646.0,0.00017068,2]
[369600262,1751638243876,-2152.0,0.00017068,2]
[369600263,1751638243888,-7079.27896768,0.00017176,2]
[369600264,1751638243900,-157.6,0.00017197,2]
[369600265,1751638243911,-151.0,0.0001726,2]
[369600266,1751638243921,-151.0,0.0001726,2]
[369600267,1751638243931,-460.0,0.0001726,2]
[369600268,1751638243942,-151.0,0.0001726,2]
[369600269,1751638243951,-460.0,0.0001726,2]
[369600270,1751638243961,-460.0,0.0001726,2]
[369600271,1751638243972,-460.0,0.0001726,2]
[369600272,1751638243981,-460.0,0.0001726,2]
[369600273,1751638243991,-460.0,0.0001726,2]
[369600274,1751638244000,-150.14368233,0.0001726,2]
[369600275,1751638244013,-309.85631767,0.0001726,2]
[369600276,1751638244022,-479.79,0.0001726,2]
[369600277,1751638244032,-460.0,0.0001726,2]
[369600278,1751638244042,-460.0,0.0001726,2]
[369600279,1751638244051,-460.0,0.0001726,2]
[369600280,1751638244060,-460.0,0.0001726,2]
[369600281,1751638244069,-460.0,0.0001726,2]
[369600282,1751638244082,-460.0,0.0001726,2]
[369600283,1751638244092,-460.0,0.0001726,2]
[369600284,1751638244101,-460.0,0.0001726,2]
[369600285,1751638244110,-560.95,0.0001726,2]
[369600286,1751638244120,-460.0,0.0001726,2]
[369600287,1751638244130,-460.0,0.0001726,2]
[369600288,1751638244146,-790.05,0.0001726,2]
[369600289,1751638244157,-460.0,0.0001726,2]
[369600290,1751638244166,-460.0,0.0001726,2]
[369600291,1751638244175,-796.63,0.0001726,2]
[369600292,1751638244184,-460.0,0.0001726,2]
[369600293,1751638244193,-1355.52,0.0001726,2]
[369600294,1751638244203,-460.0,0.0001726,2]
[369600295,1751638244213,-460.0,0.0001726,2]
[369600296,1751638244222,-649.36,0.0001726,2]
[369600297,1751638244232,-1417.26,0.0001726,2]
[369600298,1751638244242,-460.0,0.0001726,2]
[369600299,1751638244253,-2175.94,0.0001726,2]
[369600300,1751638244263,-460.0,0.0001726,2]
[369600302,1751638244272,-460.0,0.0001726,2]
[369600304,1751638244282,-667.2,0.0001726,2]
[369600306,1751638244291,-460.0,0.0001726,2]
[369600308,1751638244301,-460.0,0.0001726,2]
[369600310,1751638244311,-460.0,0.0001726,2]
[369600312,1751638244321,-906.15,0.0001726,2]
[369600314,1751638244330,-630.83,0.0001726,2]
[369600316,1751638244340,-460.0,0.0001726,2]
[369600318,1751638244350,-719.46368233,0.0001726,2]
[369600537,1751638246730,-625.06631767,0.0001726,2]
[369600539,1751638246740,-460.0,0.0001726,2]
[369600541,1751638246749,-460.0,0.0001726,2]
[369600543,1751638246759,-460.0,0.0001726,2]
[369600545,1751638246769,-706.74336825,0.0001726,2]
[369600547,1751638246780,-1388.17663175,0.0001726,2]
[369600549,1751638246790,-346.92250505,0.0001726,2]
[369600551,1751638246802,-1098.72749495,0.0001726,2]
[369600553,1751638246812,-773.31,0.0001726,2]
[369600555,1751638246822,-460.0,0.0001726,2]
[369600557,1751638246833,-460.0,0.0001726,2]
[369600559,1751638246843,-1838.31,0.0001726,2]
[369600561,1751638246855,-460.0,0.0001726,2]
[369600563,1751638246865,-1226.09,0.0001726,2]
[369600565,1751638246875,-460.0,0.0001726,2]
[369600567,1751638246885,-460.0,0.0001726,2]
[369600569,1751638246904,-644.04,0.0001726,2]
[369600571,1751638246913,-460.0,0.0001726,2]
[369600573,1751638246923,-823.2,0.0001726,2]
[369600575,1751638246933,-940.98,0.0001726,2]
[369600577,1751638246942,-460.0,0.0001726,2]
[369600579,1751638246951,-481.16,0.0001726,2]
[369600581,1751638246961,-460.0,0.0001726,2]
[369600583,1751638246971,-460.0,0.0001726,2]
[369600585,1751638246980,-460.0,0.0001726,2]
[369600587,1751638246989,-460.0,0.0001726,2]
[369600588,1751638246999,-284.236,0.00017315,2]
[369600590,1751638247009,-7051.91643459,0.00017452,2]
[369600593,1751638247021,-27.36253309,0.00017452,2]
[369600595,1751638247031,-395.29439448,0.00017484,2]
[369600596,1751638247040,-412.81978401,0.00017516,2]
[369600598,1751638247050,-500.0,0.00017516,2]
[369600600,1751638247060,-500.0,0.0001752,2]
[369600602,1751638247069,-500.0,0.0001752,2]
[369600604,1751638247079,-151.0,0.00017534,2]
[369600606,1751638247092,-598.43,0.00017534,2]
[369600608,1751638247102,-151.0,0.00017534,2]
[369600610,1751638247112,-460.0,0.00017534,2]
[369600612,1751638247121,-182.11995258,0.00017534,2]
[369600614,1751638247132,-460.0,0.00017534,2]
[369600616,1751638247145,-460.0,0.00017534,2]
[369600618,1751638247154,-460.0,0.00017534,2]
[369600620,1751638247165,-460.0,0.00017534,2]
[369600622,1751638247175,-479.79,0.00017534,2]
[369600624,1751638247184,-200.34595712,0.00017534,2]
[369600626,1751638247196,-259.65404288,0.00017534,2]
[369600631,1751638247235,-460.0,0.00017534,2]
[369600633,1751638247244,-460.0,0.00017534,2]
[369600634,1751638247253,-460.0,0.00017534,2]
[369600636,1751638247263,-460.0,0.00017534,2]
[369600638,1751638247272,-460.0,0.00017534,2]
[369600640,1751638247282,-28.32595712,0.00017534,2]
[369600643,1751638247295,-431.67404288,0.00017534,2]
[369600644,1751638247305,-460.0,0.00017534,2]
[369600646,1751638247315,-560.95,0.00017534,2]
[369600648,1751638247325,-460.0,0.00017534,2]
[369600650,1751638247335,-460.0,0.00017534,2]
[369600652,1751638247346,-790.05,0.00017534,2]
[369600654,1751638247357,-460.0,0.00017534,2]
[369600656,1751638247367,-460.0,0.00017534,2]
[369600658,1751638247377,-796.63,0.00017534,2]
[369600660,1751638247387,-460.0,0.00017534,2]
[369600662,1751638247403,-1355.52,0.00017534,2]
[369600664,1751638247412,-460.0,0.00017534,2]
[369600666,1751638247421,-460.0,0.00017534,2]
[369600668,1751638247430,-649.36,0.00017534,2]
[369600670,1751638247439,-1417.26,0.00017534,2]
[369600671,1751638247449,-460.0,0.00017534,2]
[369600673,1751638247458,-460.0,0.00017534,2]
[369600675,1751638247467,-2175.94,0.00017534,2]
[369600677,1751638247476,-460.0,0.00017534,2]
[369600679,1751638247485,-553.94829658,0.00017534,2]
[369601014,1751638759212,3000.36,0.00027397,120]
[369601017,1751638847637,694.571187,0.00013699,2]
[369601035,1751639323276,308.71781164,0.0002,120]
[369601084,1751639431896,-300.0,0.00015435,2]
[369601085,1751639431906,-300.0,0.00015435,2]
[369601086,1751639431916,-1200.0,0.00015435,2]
[369601087,1751639431925,-500.0,0.00015435,2]
[369601088,1751639431935,-500.0,0.00015436,2]
[369601089,1751639431944,-3343.47180631,0.00015436,2]
[369601090,1751639431955,-6432.30295447,0.00015437,2]
[369601092,1751639431991,-458.12,0.00015435,2]
[369601093,1751639432002,-41.88,0.00015435,2]
[369601094,1751639432011,-500.0,0.00015435,2]
[369601095,1751639432021,-1694.0712,0.00015437,2]
[369601152,1751639438155,-500.0,0.00015435,2]
[369601153,1751639438165,-184.13106432,0.00015435,2]
[369601154,1751639438178,-315.86893568,0.00015435,2]
[369601155,1751639438187,-152.68915347,0.00015435,2]
[369601156,1751639438199,-347.31084653,0.00015435,2]
[369601157,1751639438209,-500.0,0.00015435,2]
[369601158,1751639438219,-300.0,0.00015435,2]
[369601159,1751639438228,-500.0,0.00015435,2]
[369601160,1751639438238,-180.21205347,0.00015435,2]
[369601161,1751639438249,-319.78794653,0.00015435,2]
[369601162,1751639438259,-500.0,0.00015435,2]
[369601163,1751639438269,-500.0,0.00015435,2]
[369601164,1751639438278,-500.0,0.00015435,2]
[369601165,1751639438287,-3192.60144505,0.00015437,2]
[369601166,1751639438299,-500.0,0.00015437,2]
[369601167,1751639438311,-381.83123769,0.00015437,2]
[369601168,1751639438322,-760.18,0.00015437,2]
[369601172,1751639440133,-269.925,0.00015437,2]
[369601174,1751639440158,-2082.96014719,0.00015437,2]
[369601175,1751639440262,-2120.72021245,0.00015437,2]
[369601176,1751639440275,-501.4881206,0.00015437,2]
[369601185,1751639443056,-6963.91968255,0.00015437,2]
[369601186,1751639443066,-662.88462222,0.00015942,2]
[369601187,1751639443076,-340.40310545,0.00016337,2]
[369601188,1751639443085,-617.37389064,0.00016338,2]
[369601189,1751639443100,-500.0,0.00016437,2]
[369601190,1751639443114,-500.0,0.00016437,2]
[369601191,1751639443126,-500.0,0.00016437,2]
[369601192,1751639443139,-498.43299322,0.00016437,2]
[369601193,1751639443151,-174.98570592,0.00016438,2]
[369601194,1751639443164,-68.56814518,0.00016438,2]
[369601195,1751639443176,-185.89046088,0.00016438,2]
[369601196,1751639443325,-274.10953912,0.00016438,2]
[369601197,1751639443337,-62.8129085,0.00016438,2]
[369601198,1751639443352,-247.41923341,0.00016438,2]
[369601199,1751639443364,-215.70540546,0.00016438,2]
[369601200,1751639443376,-460.0,0.00016438,2]
[369601201,1751639443389,-460.0,0.00016438,2]
[369601202,1751639443400,-460.0,0.00016438,2]
[369601203,1751639443413,-460.0,0.00016438,2]
[369601204,1751639443424,-460.0,0.00016438,2]
[369601205,1751639443436,-460.0,0.00016438,2]
[369601207,1751639443458,-460.0,0.00016438,2]
[369601210,1751639443480,-460.0,0.00016438,2]
[369601212,1751639443495,-460.0,0.00016438,2]
[369601215,1751639443509,-460.0,0.00016438,2]
[369601218,1751639443526,-460.0,0.00016438,2]
[369601220,1751639443541,-521.36,0.00016438,2]
[369601222,1751639443555,-460.0,0.00016438,2]
[369601225,1751639443568,-460.0,0.00016438,2]
[369601227,1751639443580,-460.0,0.00016438,2]
[369601229,1751639443591,-460.0,0.00016438,2]
[369601231,1751639443602,-460.0,0.00016438,2]
[369601234,1751639443615,-460.0,0.00016438,2]
[369601236,1751639443625,-460.0,0.00016438,2]
[369601238,1751639443638,-460.0,0.00016438,2]
[369601240,1751639443652,-396.10813515,0.00016438,2]
[369601243,1751639443665,-460.0,0.00016438,2]
[369601245,1751639443678,-460.0,0.00016438,2]
[369601247,1751639443691,-460.0,0.00016438,2]
[369601250,1751639443707,-460.0,0.00016438,2]
[369601251,1751639443720,-460.0,0.00016438,2]
[369601252,1751639443734,-460.0,0.00016438,2]
[369601253,1751639443749,-460.0,0.00016438,2]
[369601255,1751639443762,-460.0,0.00016438,2]
[369601257,1751639443772,-342.51669618,0.00016438,2]
[369601259,1751639443782,-460.0,0.00016438,2]
[369601260,1751639443792,-341.51041215,0.00016438,2]
[369601261,1751639443803,-460.0,0.00016438,2]
[369601263,1751639443815,-460.0,0.00016438,2]
[369601265,1751639443827,-460.0,0.00016438,2]
[369601267,1751639443842,-460.0,0.00016438,2]
[369601269,1751639443855,-460.0,0.00016438,2]
[369601271,1751639443865,-460.0,0.00016438,2]
[369601274,1751639443876,-460.0,0.00016438,2]
[369601276,1751639443888,-460.0,0.00016438,2]
[369601278,1751639443900,-460.0,0.00016438,2]
[369601280,1751639443914,-460.0,0.00016438,2]
[369601283,1751639443926,-460.0,0.00016438,2]
[369601285,1751639443938,-460.0,0.00016438,2]
[369601287,1751639443948,-460.0,0.00016438,2]
[369601289,1751639443959,-845.88,0.00016438,2]
[369601291,1751639443970,-460.0,0.00016438,2]
[369601293,1751639443981,-460.0,0.00016438,2]
[369601295,1751639443992,-159.7894581,0.00016438,2]
[369601298,1751639444007,-601.92,0.00016438,2]
[369601300,1751639444018,-460.0,0.00016438,2]
[369601302,1751639444030,-460.0,0.00016438,2]
[369601305,1751639444047,-460.0,0.00016438,2]
[369601307,1751639444060,-460.0,0.00016438,2]
[369601309,1751639444073,-460.0,0.00016438,2]
[369601312,1751639444086,-460.0,0.00016438,2]
[369601314,1751639444098,-460.0,0.00016438,2]
[369601316,1751639444111,-460.0,0.00016438,2]
[369601318,1751639444123,-460.0,0.00016438,2]
[369601321,1751639444136,-335.34768345,0.00016438,2]
[369601323,1751639444147,-460.0,0.00016438,2]
[369601325,1751639444159,-460.0,0.00016438,2]
[369601327,1751639444171,-500.0,0.00016438,2]
[369601329,1751639444183,-244.07558583,0.00016438,2]
[369601331,1751639444194,-500.0,0.00016438,2]
[369601333,1751639444207,-500.0,0.00016438,2]
[369601336,1751639444220,-630.66,0.00016438,2]
[369601338,1751639444234,-460.0,0.00016438,2]